bitfinex/quotes_BTCUSD_20220226
["timestamp","ask_amount","ask_price","bid_price","bid_amount"]
[1645908280681,0.29524733,39393.0,39392.0,0.73416233]
[1645908282686,0.29724733,39393.0,39392.0,0.73416233]
[1645908283840,0.29524733,39393.0,39392.0,0.73416233]
[1645908284044,0.29324733,39393.0,39392.0,0.73409991]
[1645908284640,0.29524733,39393.0,39392.0,0.73409991]
[1645908285941,0.29324733,39393.0,39392.0,0.73409991]
[1645908286775,0.29524733,39393.0,39392.0,0.73409991]
[1645908288377,0.29324733,39393.0,39392.0,0.73409991]
[1645908288882,0.29524733,39393.0,39392.0,0.73409991]
[1645908289379,0.42229833,39393.0,39392.0,0.73409991]
[1645908290380,0.42029833,39393.0,39392.0,0.73409991]
[1645908290626,0.42229833,39393.0,39392.0,0.73409991]
[1645908292327,0.42029833,39393.0,39392.0,0.73409991]
[1645908292626,0.42229833,39393.0,39392.0,0.73409991]
[1645908293629,0.35877233,39393.0,39392.0,0.73409991]
[1645908294033,0.35677233,39393.0,39392.0,0.73409991]
[1645908294674,0.35877233,39393.0,39392.0,0.73409991]
[1645908295770,0.45877233,39393.0,39392.0,0.73409991]
[1645908295970,0.45677233,39393.0,39392.0,0.73409991]
[1645908296770,0.45877233,39393.0,39392.0,0.73409991]
[1645908297873,0.45677233,39393.0,39392.0,0.73409991]
[1645908298731,0.45877233,39393.0,39392.0,0.73409991]
[1645908300131,0.45877233,39393.0,39392.0,0.7355492]
[1645908300333,0.34524733,39393.0,39392.0,0.7355492]
[1645908300535,0.29324733,39393.0,39392.0,0.7355492]
[1645908300733,0.29524733,39393.0,39392.0,0.7355492]
[1645908301133,0.24434733,39393.0,39392.0,0.7355492]
[1645908301975,0.24234733,39393.0,39392.0,0.7355492]
[1645908302176,0.44234733,39393.0,39392.0,0.7355492]
[1645908302380,0.49324733,39393.0,39392.0,0.7355492]
[1645908302676,0.71295599,39393.0,39392.0,0.7360492]
[1645908302875,0.71495599,39393.0,39392.0,0.7360492]
[1645908303277,0.71495599,39393.0,39392.0,0.00194929]
[1645908304077,0.49524733,39393.0,39392.0,0.00194929]
[1645908304679,0.49624733,39393.0,39392.0,0.00194929]
[1645908305081,0.49424733,39393.0,39392.0,0.00194929]
[1645908305379,0.68625481,39393.0,39392.0,0.00194929]
[1645908305650,3.36523843,39393.0,39392.0,0.00194929]
[1645908305955,3.40277367,39393.0,39392.0,0.00194929]
[1645908306855,3.20477367,39393.0,39392.0,0.00194929]
[1645908307256,3.31754496,39393.0,39392.0,0.00194929]
[1645908308056,0.63656134,39393.0,39392.0,0.00194929]
[1645908308257,0.73656134,39393.0,39392.0,0.00194929]
[1645908308458,0.62379005,39393.0,39392.0,0.00194929]
[1645908308853,0.62579005,39393.0,39392.0,0.00194929]
[1645908309053,1.01758183,39393.0,39392.0,0.00194929]
[1645908309286,1.01894073,39393.0,39392.0,0.00194929]
[1645908309886,1.01694073,39393.0,39392.0,0.00194929]
[1645908310290,0.73792024,39393.0,39392.0,0.00194929]
[1645908310687,0.73992024,39393.0,39392.0,0.00194929]
[1645908311089,1.01883609,39393.0,39392.0,0.00194929]
[1645908311589,1.37471609,39393.0,39392.0,0.00194929]
[1645908311790,1.290625,39392.0,39391.0,0.0004041]
[1645908311993,2.626114,39392.0,39391.0,0.0004041]
[1645908312205,3.09476529,39392.0,39391.0,0.0004041]
[1645908312388,3.49176056,39392.0,39391.0,0.0004041]
[1645908312590,0.80908797,39391.0,39384.0,0.01014]
[1645908312790,0.379008,39385.0,39379.0,0.1185]
[1645908313035,0.142421,39380.0,39379.0,0.1185]
[1645908313235,0.193321,39380.0,39377.0,0.1966]
[1645908313436,0.193321,39380.0,39371.0,0.4682]
[1645908313636,0.193321,39380.0,39371.0,0.1232]
[1645908314338,0.0509,39380.0,39371.0,0.1232]
[1645908314543,0.0063589,39376.0,39371.0,0.4232]
[1645908314738,0.0063589,39376.0,39371.0,0.1232]
[1645908314938,0.0063589,39376.0,39371.0,0.4232]
[1645908315138,0.0063589,39376.0,39371.0,0.3]
[1645908315340,0.0063589,39376.0,39370.0,0.21437437]
[1645908316539,0.0063589,39376.0,39371.0,0.0004298]
[1645908316774,0.0073589,39376.0,39371.0,0.0004298]
[1645908317577,0.0073589,39376.0,39370.0,0.21437437]
[1645908317776,0.0073589,39376.0,39372.0,0.0004298]
[1645908318177,0.0063589,39376.0,39372.0,0.0004298]
[1645908318781,0.0073589,39376.0,39370.0,0.21437437]
[1645908318980,0.0073589,39376.0,39372.0,0.0004298]
[1645908319683,0.00417945,39376.0,39372.0,0.0004298]
[1645908319880,0.00317945,39374.0,39372.0,0.0004298]
[1645908320080,0.00317945,39374.0,39370.0,0.21437437]
[1645908320081,0.00317945,39373.0,39370.0,0.21437437]
[1645908320282,0.00317945,39374.0,39373.0,0.00635889]
[1645908322851,0.00417945,39374.0,39373.0,0.00635889]
[1645908324053,0.00317945,39374.0,39373.0,0.00635889]
[1645908324283,0.4159,39388.0,39374.0,1.22545]
[1645908324482,0.4159,39388.0,39375.0,0.24915116]
[1645908324483,0.065,39388.0,39375.0,0.24915116]
[1645908324886,0.015,39388.0,39375.0,0.24915116]
[1645908325083,0.015,39388.0,39380.0,0.00042974]
[1645908325283,0.183321,39387.0,39380.0,0.00042974]
[1645908325482,0.3,39386.0,39380.0,0.00042974]
[1645908325685,0.429908,39385.0,39380.0,0.00042974]
[1645908325884,0.132413,39383.0,39380.0,0.00042974]
[1645908326085,0.379008,39381.0,39376.0,0.18564923]
[1645908326285,0.0509,39382.0,39376.0,0.18564923]
[1645908327390,0.0509,39382.0,39377.0,0.00042976]
[1645908328027,0.429962,39387.0,39377.0,0.00042976]
[1645908328228,0.05,39386.0,39377.0,0.00042976]
[1645908328429,0.132359,39385.0,39376.0,0.18564923]
[1645908328631,0.35,39386.0,39380.0,0.00042974]
[1645908328930,0.0509,39387.0,39380.0,0.00042974]
[1645908329129,0.379062,39386.0,39380.0,0.00042974]
[1645908329330,0.674062,39386.0,39380.0,0.00042974]
[1645908329529,0.674062,39386.0,39376.0,0.18564923]
[1645908329728,0.674062,39386.0,39381.0,0.00042973]
[1645908329934,0.374062,39386.0,39381.0,0.00042973]
[1645908330133,0.437593,39386.0,39381.0,0.00042973]
[1645908330729,0.437593,39386.0,39376.0,0.18564923]
[1645908330931,0.3,39385.0,39376.0,0.18564923]
[1645908331229,0.379079,39384.0,39382.0,0.00042973]
[1645908331883,0.12734,39385.0,39382.0,0.00042973]
[1645908332085,0.12734,39385.0,39376.0,0.18564923]
[1645908332086,0.363531,39386.0,39376.0,0.18564923]
[1645908332283,0.363531,39386.0,39381.0,0.00042973]
[1645908332486,0.379079,39385.0,39381.0,0.00042973]
[1645908332883,0.379079,39384.0,39381.0,0.00042973]
[1645908333282,0.363531,39386.0,39376.0,0.18564923]
[1645908333488,0.363531,39386.0,39381.0,0.00042974]
[1645908333687,0.0626309,39386.0,39381.0,0.00042974]
[1645908333986,0.015,39388.0,39381.0,0.00042974]
[1645908334193,0.015,39388.0,39382.0,0.379079]
[1645908334589,0.015,39388.0,39384.0,0.21854342]
[1645908334784,0.015,39388.0,39385.0,0.379079]
[1645908335841,0.015,39388.0,39385.0,0.37950871]
[1645908336836,0.015,39388.0,39385.0,0.379079]
[1645908337038,0.015,39388.0,39385.0,0.37950871]
[1645908337337,0.77931935,39398.0,39391.0,0.22814411]
[1645908337541,0.05042956,39398.0,39391.0,0.22814411]
[1645908337737,0.30042956,39398.0,39391.0,0.22814411]
[1645908337939,0.21626319,39396.0,39391.0,0.22814411]
[1645908339483,0.30042959,39398.0,39391.0,0.22814411]
[1645908339880,0.00042959,39398.0,39391.0,0.22814411]
[1645908340486,0.16435183,39397.0,39391.0,0.22814411]
[1645908340683,0.00042959,39398.0,39391.0,0.22814411]
[1645908341581,0.3,39398.0,39391.0,0.22814411]
[1645908341981,0.48237773,39398.0,39391.0,0.22814411]
[1645908342383,0.30042959,39398.0,39391.0,0.22814411]
[1645908342686,0.00042959,39398.0,39391.0,0.22814411]
[1645908342882,0.42888979,39401.0,39391.0,0.22814411]
[1645908343133,0.00042959,39398.0,39391.0,0.22814411]
[1645908343334,0.20743549,39400.0,39391.0,0.22814411]
[1645908343735,0.20243549,39400.0,39391.0,0.22814411]
[1645908343935,0.44388979,39402.0,39392.0,0.3]
[1645908344138,0.015,39402.0,39392.0,0.3]
[1645908344937,0.015,39402.0,39392.0,0.48927989]
[1645908345938,0.01,39402.0,39392.0,0.48927989]
[1645908346537,0.64877981,39406.0,39392.0,0.48927989]
[1645908346782,0.64877981,39406.0,39393.0,0.00028467]
[1645908347388,0.21989002,39406.0,39393.0,0.00028467]
[1645908347587,0.21989002,39406.0,39392.0,0.48927989]
[1645908347993,0.0001452,39401.0,39393.0,0.379079]
[1645908348190,0.0001452,39401.0,39394.0,0.3]
[1645908348489,0.0001452,39401.0,39394.0,0.32545]
[1645908348689,0.0001452,39401.0,39393.0,0.0249]
[1645908348889,0.0443,39406.0,39394.0,0.02545]
[1645908349189,0.00014519,39400.0,39395.0,0.379079]
[1645908349588,0.00014519,39400.0,39396.0,0.3]
[1645908349990,0.16657449,39405.0,39392.0,0.32545]
[1645908350188,0.16657449,39405.0,39393.0,0.02545]
[1645908350387,0.0001452,39400.0,39393.0,0.01014]
[1645908350636,0.0001452,39400.0,39394.0,0.379079]
[1645908350836,0.0001452,39400.0,39395.0,0.3]
[1645908351234,0.0443,39406.0,39393.0,0.02545]
[1645908351435,0.00042981,39400.0,39393.0,0.00042989]
[1645908351736,0.00042981,39400.0,39394.0,0.379079]
[1645908351935,0.00042981,39400.0,39396.0,0.379079]
[1645908352136,0.00042981,39400.0,39394.0,0.379079]
[1645908352535,0.0443,39406.0,39395.0,0.3]
[1645908352738,0.0443,39406.0,39394.0,0.379079]
[1645908352739,0.00042981,39400.0,39394.0,0.379079]
[1645908352944,0.00042981,39400.0,39396.0,0.379079]
[1645908353141,0.00042981,39400.0,39397.0,0.3]
[1645908353339,0.00042981,39400.0,39394.0,0.379079]
[1645908353535,0.00042981,39400.0,39397.0,0.02545]
[1645908353738,0.0443,39406.0,39397.0,0.32545]
[1645908353936,0.0443,39406.0,39393.0,0.01014]
[1645908353937,0.00042981,39400.0,39398.0,0.379079]
[1645908354382,0.00042981,39400.0,39395.0,0.24824069]
[1645908354681,0.00042981,39400.0,39396.0,0.704529]
[1645908354882,0.0443,39406.0,39396.0,0.704529]
[1645908355082,0.00042981,39400.0,39396.0,0.32545]
[1645908355283,0.00042981,39400.0,39397.0,0.379079]
[1645908355582,0.00042981,39400.0,39399.0,0.379079]
[1645908356084,0.0443,39406.0,39399.0,0.379079]
[1645908356282,0.0443,39406.0,39393.0,0.3795089]
[1645908356283,0.00042981,39401.0,39393.0,0.3795089]
[1645908356482,0.00042981,39401.0,39395.0,0.379079]
[1645908356681,0.00042981,39401.0,39397.0,0.379079]
[1645908356881,0.00042981,39401.0,39395.0,0.15790136]
[1645908357081,0.00042981,39401.0,39396.0,0.679079]
[1645908357282,0.0443,39406.0,39393.0,0.3]
[1645908357484,0.03972982,39406.0,39394.0,1.2]
[1645908357684,0.03972982,39406.0,39395.0,0.3]
[1645908358030,0.03972982,39406.0,39393.0,0.32587989]
[1645908358230,0.03972982,39406.0,39393.0,0.30042989]
[1645908358433,0.03972982,39406.0,39393.0,0.3]
[1645908359031,0.16677862,39403.0,39393.0,0.3]
[1645908359231,0.16677862,39403.0,39394.0,0.379079]
[1645908359432,0.16677862,39403.0,39395.0,0.3]
[1645908359633,0.16677862,39403.0,39393.0,0.379079]
[1645908359834,0.0004298,39402.0,39394.0,0.30042988]
[1645908360034,0.0004298,39402.0,39394.0,0.00042988]
[1645908360335,0.0004298,39402.0,39394.0,0.00139621]
[1645908360737,0.0004298,39402.0,39395.0,0.379079]
[1645908360938,0.16677862,39403.0,39396.0,0.3]
[1645908361136,0.00040249,39402.0,39396.0,0.00096633]
[1645908361982,0.17326507,39405.0,39396.0,0.00096633]
[1645908362380,0.00040249,39402.0,39396.0,0.00096633]
[1645908362782,0.00040249,39402.0,39397.0,0.379079]
[1645908362981,0.00040249,39402.0,39397.0,0.38004533]
[1645908363281,0.03972982,39406.0,39397.0,0.00096633]
[1645908363484,0.00040249,39402.0,39397.0,0.00096633]
[1645908364481,0.18612791,39404.0,39397.0,0.00096633]
[1645908364780,0.00040249,39402.0,39397.0,0.00096633]
[1645908365633,0.03972982,39406.0,39397.0,0.00096633]
[1645908365836,0.00040434,39402.0,39397.0,0.00096633]
[1645908366935,0.16004043,39405.0,39397.0,0.00096633]
[1645908367133,0.00040434,39402.0,39397.0,0.00096633]
[1645908368138,0.03972982,39406.0,39397.0,0.00096633]
[1645908368334,0.00040434,39402.0,39397.0,0.00096633]
[1645908369034,0.03972982,39406.0,39397.0,0.00096633]
[1645908369035,0.03513416,39406.0,39397.0,0.00096633]
[1645908369880,0.22534719,39406.0,39397.0,0.00096633]
[1645908371482,0.12534719,39406.0,39397.0,0.00096633]
[1645908371885,0.00014464,39404.0,39397.0,0.00096633]
[1645908372783,0.12534719,39406.0,39397.0,0.00096633]
[1645908373037,0.0001444,39404.0,39397.0,0.00096633]
[1645908373238,0.0001444,39404.0,39398.0,0.379079]
[1645908373433,0.0001444,39404.0,39398.0,0.00096633]
[1645908374133,0.19997978,39404.0,39398.0,0.00096633]
[1645908374431,0.20012418,39404.0,39398.0,0.00096633]
[1645908374630,0.0001444,39404.0,39398.0,0.00096633]
[1645908375233,0.0032,39407.0,39398.0,0.00096633]
[1645908375431,0.0001444,39404.0,39398.0,0.00096633]
[1645908375633,0.1579879,39404.0,39398.0,0.00096633]
[1645908376434,0.1578435,39404.0,39398.0,0.00096633]
[1645908376638,0.0032,39407.0,39398.0,0.00096633]
[1645908376885,0.00042985,39404.0,39398.0,0.00096633]
[1645908377087,0.00182985,39408.0,39399.0,0.4]
[1645908377285,0.00182985,39408.0,39399.0,0.00096633]
[1645908377687,0.17036809,39407.0,39399.0,0.00096633]
[1645908378691,0.16536809,39407.0,39399.0,0.00096633]
[1645908380289,0.00014433,39406.0,39399.0,0.00096633]
[1645908381229,0.16036809,39407.0,39399.0,0.00096633]
[1645908381433,0.16036809,39407.0,39400.0,0.00042991]
[1645908381632,0.00042984,39406.0,39400.0,0.00139624]
[1645908382430,0.16036809,39407.0,39400.0,0.00096633]
[1645908382629,0.16036809,39407.0,39400.0,0.00139624]
[1645908382831,0.00042984,39406.0,39400.0,0.00139624]
[1645908383632,0.16036809,39407.0,39400.0,0.00096633]
[1645908383831,0.16036809,39407.0,39400.0,0.00139624]
[1645908384033,0.00042984,39406.0,39400.0,0.00139624]
[1645908384899,0.16036809,39407.0,39400.0,0.00096633]
[1645908385091,0.00042984,39406.0,39400.0,0.00139624]
[1645908386087,0.43071964,39408.0,39400.0,0.00096633]
[1645908386287,0.00042984,39406.0,39400.0,0.00139624]
[1645908386990,0.22252937,39406.0,39400.0,0.00139624]
[1645908387186,0.22252937,39406.0,39400.0,0.00051833]
[1645908387386,0.22209953,39406.0,39400.0,0.00124761]
[1645908387587,0.22252937,39406.0,39400.0,0.00124761]
[1645908388434,0.22209953,39406.0,39400.0,0.0008177]
[1645908388628,0.22209953,39406.0,39400.0,0.00124761]
[1645908388829,0.22252937,39406.0,39400.0,0.00124761]
[1645908389633,0.22209953,39406.0,39400.0,0.0008177]
[1645908389832,0.22252937,39406.0,39400.0,0.00124761]
[1645908390231,0.00042984,39406.0,39400.0,0.00124761]
[1645908390629,0.00042984,39406.0,39401.0,0.379079]
[1645908390830,0.43071964,39408.0,39403.0,0.22093027]
[1645908391031,0.43071964,39408.0,39403.0,0.22174797]
[1645908391230,0.00042984,39406.0,39403.0,0.22174797]
[1645908392081,0.43071964,39408.0,39403.0,0.22174797]
[1645908392291,0.00042984,39406.0,39403.0,0.22174797]
[1645908393082,0.00042984,39406.0,39403.0,0.22174795]
[1645908393283,0.43071964,39408.0,39403.0,0.22174795]
[1645908393582,0.00042984,39406.0,39403.0,0.22174795]
[1645908393786,0.00042984,39406.0,39405.0,0.379079]
[1645908393984,0.00042984,39406.0,39405.0,0.67989668]
[1645908394184,0.00042984,39406.0,39405.0,0.67989666]
[1645908394585,0.00182985,39408.0,39405.0,0.85415911]
[1645908394984,4.25e-06,39407.0,39405.0,0.85415909]
[1645908395300,0.42998979,39419.0,39408.0,1.579079]
[1645908395549,0.0022,39421.0,39411.0,0.379079]
[1645908395752,0.0022,39421.0,39413.0,0.379079]
[1645908395946,0.0022,39421.0,39414.0,0.3]
[1645908396144,0.0022,39421.0,39420.0,0.55016469]
[1645908396547,0.0011,39422.0,39420.0,0.85016469]
[1645908396745,0.0011,39422.0,39421.0,0.679079]
[1645908396947,0.001,39424.0,39421.0,0.429079]
[1645908397355,0.02678382,39425.0,39420.0,0.00081749]
[1645908397356,0.02278382,39425.0,39420.0,0.00081749]
[1645908398151,0.04042361,39425.0,39420.0,0.00081749]
[1645908398454,0.40678198,39425.0,39420.0,0.00081749]
[1645908398650,0.70678198,39425.0,39420.0,0.00081749]
[1645908398847,0.40678198,39425.0,39420.0,0.00081749]
[1645908399047,0.02278382,39425.0,39420.0,0.00081749]
[1645908399686,0.00043088,39424.0,39420.0,0.00081749]
[1645908400284,0.20988419,39424.0,39420.0,0.00081749]
[1645908400688,0.20945331,39424.0,39420.0,0.00081749]
[1645908400887,0.20959701,39424.0,39420.0,0.00081749]
[1645908401687,0.20945331,39424.0,39420.0,0.00081749]
[1645908402087,0.00043112,39424.0,39420.0,0.00081749]
[1645908402888,0.02278382,39425.0,39420.0,0.00081749]
[1645908403139,0.1688998,39424.0,39420.0,0.00081749]
[1645908404235,0.16846868,39424.0,39420.0,0.00081749]
[1645908404536,0.00043112,39424.0,39420.0,0.00081749]
[1645908405336,0.02278382,39425.0,39420.0,0.00081749]
[1645908405636,0.02278382,39425.0,39420.0,0.00014319]
[1645908406338,0.02278382,39425.0,39415.0,0.57825036]
[1645908406783,0.02278382,39425.0,39420.0,0.19469103]
[1645908408084,0.00043116,39424.0,39420.0,0.19469103]
[1645908408682,0.00043116,39424.0,39415.0,0.41849399]
[1645908408885,0.02278382,39425.0,39416.0,0.379079]
[1645908409083,0.02278382,39425.0,39417.0,0.3]
[1645908409285,0.00043116,39424.0,39418.0,0.379079]
[1645908409483,0.00043116,39424.0,39417.0,0.3]
[1645908409884,0.00043116,39424.0,39418.0,0.379079]
[1645908410084,0.1864773,39425.0,39417.0,0.2202371]
[1645908410544,0.00043117,39422.0,39418.0,0.379079]
[1645908410739,0.00043117,39422.0,39417.0,0.2202371]
[1645908410939,0.00043117,39422.0,39418.0,0.379079]
[1645908411243,0.00043117,39422.0,39416.0,0.379079]
[1645908411440,0.56105243,39425.0,39415.0,0.11849399]
[1645908411641,0.00043118,39422.0,39416.0,0.379079]
[1645908412041,0.00043118,39422.0,39417.0,0.379079]
[1645908412239,0.00043118,39422.0,39416.0,0.379079]
[1645908412542,0.1805293,39424.0,39415.0,0.11849399]
[1645908412741,0.00043119,39421.0,39415.0,0.11849399]
[1645908413343,0.17596049,39424.0,39415.0,0.11849399]
[1645908414389,0.18516951,39419.0,39415.0,0.11849399]
[1645908414589,0.17596049,39424.0,39416.0,0.379079]
[1645908414790,0.17596049,39424.0,39412.0,0.379079]
[1645908415392,0.17596049,39424.0,39411.0,0.4207]
[1645908415590,0.22309355,39420.0,39411.0,0.4207]
[1645908415795,0.61398529,39424.0,39412.0,0.379079]
[1645908415990,0.61398529,39424.0,39411.0,0.4207]
[1645908416390,0.0001435,39423.0,39411.0,0.4207]
[1645908416790,0.19701777,39420.0,39411.0,0.4207]
[1645908416996,0.19701777,39420.0,39412.0,0.379079]
[1645908417391,0.17596049,39424.0,39412.0,0.379079]
[1645908417591,0.00043115,39423.0,39412.0,0.00043127]
[1645908417890,0.00043115,39423.0,39413.0,0.379079]
[1645908418339,0.16579827,39423.0,39415.0,0.379079]
[1645908418538,0.02278382,39425.0,39412.0,0.3]
[1645908418735,0.02278382,39425.0,39413.0,0.379079]
[1645908418936,0.00043116,39423.0,39414.0,0.3]
[1645908419135,0.00043116,39423.0,39419.0,0.379079]
[1645908419734,0.24445835,39425.0,39419.0,0.379079]
[1645908419937,0.00014435,39423.0,39418.0,0.21236416]
[1645908420139,0.00014435,39423.0,39419.0,0.379079]
[1645908421037,0.02278382,39425.0,39419.0,0.374079]
[1645908421337,0.00014435,39423.0,39419.0,0.378797]
[1645908422187,0.02278382,39425.0,39419.0,0.378797]
[1645908422386,0.00043233,39423.0,39419.0,0.378797]
[1645908423492,0.02278382,39425.0,39420.0,0.378797]
[1645908423691,0.00014433,39423.0,39419.0,0.378797]
[1645908424590,0.02278382,39425.0,39418.0,0.21236416]
[1645908424791,0.00014433,39423.0,39418.0,0.21236416]
[1645908425835,0.02278382,39425.0,39418.0,0.21236416]
[1645908426040,0.00043347,39423.0,39418.0,0.21236416]
[1645908427038,0.02278382,39425.0,39418.0,0.21236416]
[1645908427238,0.00043347,39423.0,39418.0,0.21236416]
[1645908427438,0.00043347,39423.0,39415.0,0.3]
[1645908427639,0.00043347,39423.0,39414.0,0.378797]
[1645908427842,0.00043347,39423.0,39415.0,0.3]
[1645908428041,0.00043347,39423.0,39414.0,0.378797]
[1645908428243,0.02234057,39425.0,39415.0,0.3]
[1645908428444,0.00043346,39423.0,39415.0,0.17033268]
[1645908429485,0.02234057,39425.0,39416.0,0.3]
[1645908429686,0.00043346,39423.0,39416.0,0.3]
[1645908430086,0.01777403,39425.0,39417.0,0.75]
[1645908430287,0.01777403,39425.0,39416.0,0.3]
[1645908430887,0.01777403,39425.0,39415.0,0.17033268]
[1645908431593,0.24397188,39425.0,39415.0,0.17033268]
[1645908431790,0.29487188,39425.0,39412.0,0.19623]
[1645908431988,0.29501506,39425.0,39412.0,0.1861]
[1645908432888,0.29487188,39425.0,39413.0,0.378797]
[1645908433137,0.29487188,39425.0,39417.0,0.00043353]
[1645908433337,0.378797,39424.0,39417.0,0.00043353]
[1645908433638,0.132665,39422.0,39417.0,0.00043353]
[1645908433842,0.750072,39423.0,39417.0,0.00043353]
[1645908433843,0.378797,39420.0,39417.0,0.00043353]
[1645908434039,0.132665,39418.0,39417.0,0.00043353]
[1645908434235,0.132665,39418.0,39408.0,0.1865]
[1645908434236,0.183565,39418.0,39409.0,0.3]
[1645908434440,0.183565,39418.0,39417.0,0.00043353]
[1645908434638,0.48608373,39418.0,39417.0,0.00043353]
[1645908435238,1.47168373,39418.0,39417.0,0.00043353]
[1645908435438,1.47168373,39418.0,39407.0,6e-05]
[1645908435737,0.11349238,39415.0,39407.0,6e-05]
[1645908435936,0.132665,39412.0,39407.0,6e-05]
[1645908436137,0.063494,39413.0,39407.0,6e-05]
[1645908436138,0.378797,39410.0,39407.0,6e-05]
[1645908436343,0.30109338,39408.0,39407.0,6e-05]
[1645908436539,0.35199338,39408.0,39407.0,6e-05]
[1645908436794,0.183565,39408.0,39407.0,6e-05]
[1645908437192,0.186565,39408.0,39407.0,6e-05]
[1645908438390,0.183565,39408.0,39407.0,6e-05]
[1645908439191,0.35562502,39408.0,39407.0,6e-05]
[1645908440094,0.185565,39408.0,39407.0,6e-05]
[1645908440539,0.18016277,39408.0,39407.0,6e-05]
[1645908440942,0.0509,39408.0,39407.0,6e-05]
[1645908441143,0.0529,39408.0,39407.0,6e-05]
[1645908441940,0.0429,39408.0,39407.0,6e-05]
[1645908442341,0.0409,39408.0,39407.0,6e-05]
[1645908445792,0.0409,39408.0,39403.0,0.19501317]
[1645908446392,0.17531011,39407.0,39404.0,0.00042605]
[1645908447196,0.0509,39411.0,39404.0,0.00042605]
[1645908447493,0.0509,39411.0,39403.0,0.19501317]
[1645908447693,0.0509,39411.0,39404.0,0.00042168]
[1645908448138,0.378895,39410.0,39404.0,0.00042168]
[1645908448339,0.19795286,39407.0,39404.0,0.00042168]
[1645908448540,0.19795286,39407.0,39403.0,0.19501317]
[1645908448940,0.19795286,39407.0,39404.0,0.00042168]
[1645908449147,0.378895,39410.0,39404.0,0.00042168]
[1645908449343,0.12915,39408.0,39404.0,0.00042168]
[1645908449542,0.0509,39409.0,39404.0,0.00042168]
[1645908449744,0.0509,39409.0,39403.0,0.19501317]
[1645908449945,0.0509,39409.0,39405.0,0.00042167]
[1645908450947,0.0509,39409.0,39403.0,0.19501317]
[1645908451344,0.0509,39409.0,39405.0,0.00041169]
[1645908452186,0.0509,39409.0,39403.0,0.19501317]
[1645908452383,0.0509,39409.0,39405.0,0.00041169]
[1645908453384,0.0509,39409.0,39403.0,0.19501317]
[1645908453583,0.0509,39409.0,39405.0,0.00041169]
[1645908453783,0.17849836,39410.0,39405.0,0.00041169]
[1645908454585,0.17849836,39410.0,39403.0,0.19501317]
[1645908454786,0.378895,39414.0,39406.0,0.00041282]
[1645908454987,0.429795,39414.0,39406.0,0.00095727]
[1645908455633,0.20214572,39412.0,39406.0,0.00095727]
[1645908455835,0.20214572,39412.0,39406.0,0.00054445]
[1645908456038,0.20214572,39412.0,39408.0,0.0004128]
[1645908456232,0.20214572,39412.0,39408.0,0.00095725]
[1645908457136,0.12915,39411.0,39408.0,0.00054445]
[1645908457336,0.20214572,39412.0,39408.0,0.00095725]
[1645908457737,0.0509,39414.0,39408.0,0.00095725]
[1645908457943,0.378895,39413.0,39408.0,0.00095725]
[1645908458239,0.378895,39413.0,39408.0,0.00054445]
[1645908458440,0.378895,39413.0,39409.0,0.00041259]
[1645908458637,0.378895,39413.0,39409.0,0.00095704]
[1645908458836,0.0509,39414.0,39409.0,0.00095704]
[1645908458837,0.12915,39411.0,39409.0,0.00095704]
[1645908459293,0.378895,39413.0,39409.0,0.00095704]
[1645908459499,0.378895,39413.0,39409.0,0.00054445]
[1645908460297,0.39065178,39418.0,39409.0,0.00054445]
[1645908460499,0.378895,39417.0,39409.0,0.00054445]
[1645908460897,0.12915,39415.0,39412.0,0.00041257]
[1645908461099,0.12915,39415.0,39412.0,0.00095702]
[1645908461497,0.378895,39413.0,39412.0,0.00095702]
[1645908461898,0.378895,39413.0,39412.0,0.00054445]
[1645908465045,0.37863811,39413.0,39412.0,0.00054445]
[1645908466645,0.1762126,39414.0,39412.0,0.00054445]
[1645908467288,0.378861,39413.0,39412.0,0.00054445]
[1645908469684,0.128932,39413.0,39412.0,0.00054445]
[1645908469890,0.378861,39413.0,39412.0,0.00054445]
[1645908470541,0.1201,39418.0,39412.0,0.00054445]
[1645908470742,0.378861,39417.0,39412.0,0.00054445]
[1645908471541,0.1934,39419.0,39412.0,0.00054445]
[1645908471742,0.16244631,39413.0,39412.0,0.00054445]
[1645908472242,0.54130731,39413.0,39412.0,0.00054445]
[1645908472444,0.16244631,39413.0,39412.0,0.00054445]
[1645908472842,0.54130731,39413.0,39412.0,0.00054445]
[1645908473446,0.1934,39419.0,39412.0,0.00054445]
[1645908473642,0.378861,39418.0,39412.0,0.00054445]
[1645908473844,0.1934,39419.0,39412.0,0.00054445]
[1645908474043,0.378861,39418.0,39414.0,0.00041258]
[1645908474286,0.378861,39418.0,39414.0,0.00095703]
[1645908474889,0.128932,39415.0,39414.0,0.00095703]
[1645908475092,0.128932,39415.0,39414.0,0.00054445]
[1645908475291,0.128932,39415.0,39414.0,0.00095703]
[1645908475689,0.378861,39415.0,39414.0,0.00095703]
[1645908476290,0.378861,39415.0,39414.0,0.00054445]
[1645908476689,0.18324548,39416.0,39414.0,0.00054445]
[1645908479336,0.378861,39415.0,39414.0,0.00054445]
[1645908479736,0.18324548,39416.0,39414.0,0.00054445]
[1645908480140,0.378861,39415.0,39414.0,0.00054445]
[1645908480436,0.373861,39415.0,39414.0,0.00054445]
[1645908480639,0.24672948,39416.0,39414.0,0.00054445]
[1645908482590,0.378848,39415.0,39414.0,0.00054445]
[1645908483192,0.24672948,39416.0,39414.0,0.00054445]
[1645908484491,0.67527034,39416.0,39414.0,0.00054445]
[1645908484691,0.0509,39415.0,39414.0,0.00054445]
[1645908485091,0.0507532,39415.0,39414.0,0.00054445]
[1645908487944,0.42854086,39418.0,39414.0,0.00054445]
[1645908488149,0.17915981,39418.0,39414.0,0.00054445]
[1645908488441,0.378848,39417.0,39414.0,0.00083459]
[1645908489395,0.60770067,39418.0,39414.0,0.00054445]
[1645908489595,0.65860067,39418.0,39414.0,0.0008346]
[1645908489794,0.80738886,39417.0,39414.0,0.0008346]
[1645908489993,0.123947,39415.0,39414.0,0.0008346]
[1645908490193,0.82108558,39415.0,39414.0,0.0008346]
[1645908490594,0.82108558,39415.0,39414.0,0.00054445]
[1645908491597,2.60659206,39415.0,39414.0,0.00054445]
[1645908491797,1.578848,39414.0,39396.0,0.5019]
[1645908491997,0.063512,39405.0,39396.0,0.5019]
[1645908492196,0.378848,39399.0,39396.0,0.1157]
[1645908492395,0.26464746,39399.0,39396.0,0.1157]
[1645908492597,0.26464746,39399.0,39394.0,0.18831413]
[1645908493045,0.26464746,39399.0,39391.0,0.01014]
[1645908493246,0.378848,39398.0,39391.0,0.01014]
[1645908493451,0.123947,39396.0,39390.0,0.01014]
[1645908493647,0.0509,39395.0,39390.0,0.01014]
[1645908493847,0.0509,39395.0,39389.0,0.12834]